Cogmind - Beta 17 @@@ ROGUE MODE // 2026.08.01 @ 04:44:01 Player: ChCbias Result: Destroyed by B-75 Beast with Heavy Machine Gun Performance ------------- Evolutions (4) 2000 Regions Visited (7) 1400 Robots Destroyed (138) 690 Value Destroyed (3590) 3590 Prototype IDs (25) 500 Alien Tech Used (0) 0 Bonus (1136) 1136 TOTAL SCORE: 9316 Bonus ------- High Alert Combat Kills 13 Follower Combat Kills 323 Registered with UFD 300 Met Optimus in HQ 500 Cogmind --------- Core Integrity 0/850 Matter 290/300 Energy 99/100 System Corruption 4% Temperature Cool (0) Movement Core (200) Ox3 Location -6/Factory Parts ------- > --- POWER (1) -------- (None) > --- PROPULSION (6) --- (None) > --- UTILITY (6) ------ Medium Storage Unit Improved Signal Interpreter System Shield > --- WEAPON (2) ------- (None) > --- INVENTORY (10) --- Light Angular Momentum Engine Advanced Trap Scanner Improved Sensor Array Core Analyzer Actuator Array Advanced ECM Suite Improved Propulsion Shielding Improved System Shield Advanced EMP Blaster Peak State ------------ > --- POWER ------------ Light Angular Momentum Engine > --- PROPULSION ------- Aerolev Unit Aerolev Unit Aerolev Unit Aerolev Unit Aerolev Unit Gyrokinetic Inverter > --- UTILITY ---------- Medium Storage Unit Advanced Trap Scanner IFF Parser Hardened Medium Armor Plating Hacking Suite System Shield > --- WEAPON ----------- Heavy Flail Katana > --- INVENTORY -------- Light Angular Momentum Engine Melee Analysis Suite Core Analyzer ECM Suite Improved Propulsion Shielding Hardened Light Armor Plating Improved System Shield Authchip [Processor] Magnetic Acceleration Cannon Advanced EMP Blaster [Rating: 62] Favorites ----------- Power Cold Fusion Reactor Engine Improved Ion Engine Power Core Light Nuclear Core Reactor Cold Fusion Reactor Propulsion Light Treads Treads Light Treads Leg Titanium Leg Hover Unit Aerolev Unit Flight Unit Improved VTOL Module Utility Hacking Suite Device Reaction Control System Storage High-capacity Storage Unit Processor Improved Signal Interpreter Hackware Hacking Suite Protection Hardened Medium Armor Plating Weapon Heavy Laser Energy Gun Heavy Laser Ballistic Gun Improved Assault Rifle Ballistic Cannon Magnetic Acceleration Cannon Launcher Rocket Launcher Impact Weapon Heavy Flail Slashing Weapon Katana Build | -11 -10 -9 -8 -8 -8 -8 -6 ------- Run | Yrd Mat Mat Mat Sto Rec Scr Fac Slots Evolved 8 | . . 2 2 . . . 4 Power . | . . . . . . . . Propulsion 4 | . . . 1 . . . 3 Utility 4 | . . 2 1 . . . 1 Weapon . | . . . . . . . . Parts Attached 97 | 6 8 24 6 18 6 8 21 Power 14 | 1 2 4 1 3 . . 3 Engine 9 | 1 2 2 1 2 . . 1 Core 4 | . . 2 . . . . 2 Reactor 1 | . . . . 1 . . . Propulsion 27 | 2 2 7 1 5 2 1 7 Treads 15 | 2 2 5 . 3 2 1 . Leg 5 | . . 2 1 1 . . 1 Wheel . | . . . . . . . . Hover 6 | . . . . . . . 6 Flight 1 | . . . . 1 . . . Utility 33 | 1 3 7 2 4 3 4 9 Device 12 | . . 1 2 1 1 2 5 Storage 6 | 1 2 2 . . . . 1 Processor 1 | . . . . . . . 1 Hackware 6 | . . 2 . 1 1 1 1 Protection 8 | . 1 2 . 2 1 1 1 Artifact . | . . . . . . . . Weapon 23 | 2 1 6 2 6 1 3 2 Energy Gun 10 | . 1 2 2 4 1 . . Energy Cannon . | . . . . . . . . Ballistic Gun 6 | 2 . 4 . . . . . Ballistic Cannon 2 | . . . . . . 2 . Launcher 2 | . . . . 2 . . . Special Weapon . | . . . . . . . . Impact Weapon 2 | . . . . . . . 2 Slashing Weapon 1 | . . . . . . 1 . Piercing Weapon . | . . . . . . . . Special Melee Weapon . | . . . . . . . . Unidentified Prototypes 9 | . . 3 . 6 . . . Parts Lost 27 | . . 4 . 6 3 . 14 Power 2 | . . . . 1 . . 1 Propulsion 5 | . . . . . . . 5 Utility 14 | . . 2 . 3 3 . 6 Weapon 6 | . . 2 . 2 . . 2 Highest Loss Streak 12 | . . 1 . 1 3 . 12 To Critical Strikes . | . . . . . . . . Average Backups 17 | 3 8 14 19 19 19 20 10 Power 1 | . 1 1 2 1 1 1 . Propulsion 5 | 1 5 7 6 5 5 5 . Utility 8 | . 1 3 7 10 11 11 7 Weapon 2 | . . 2 3 2 2 3 1 Tool/Special . | . . . . . . . . Unused Backups 33 | . 4 6 4 8 1 1 9 Power 3 | . . 1 . 1 . . 1 Propulsion 12 | . 4 1 2 5 . . . Utility 12 | . . . 1 1 1 1 8 Weapon 6 | . . 4 1 1 . . . Tool/Special . | . . . . . . . . Average Slot Usage (%) 94 | . 99 90 98 96 97 94 94 Engine 2 | . 14 4 1 3 . . 3 Core 2 | . . 6 7 . . . 2 Reactor 4 | . . . . 5 9 9 . Treads 16 | . 28 17 . 8 27 27 . Leg 7 | . . 4 26 18 . . . Hover 2 | . . . . . . . 35 Device 9 | . . 9 7 14 9 9 11 Storage 9 | . 14 11 9 9 9 9 6 Hackware 13 | . . 12 18 9 15 18 13 Protection 7 | . 13 1 9 9 8 8 2 Energy Gun 7 | . 3 2 12 17 18 . . Ballistic Gun 6 | . 23 19 5 . . . . Ballistic Cannon 1 | . . . . . . 7 . Slashing Weapon 1 | . . . . . . 5 5 Peak Build Rating 62 | 6 7 27 37 42 38 43 62 Average Rating 32 | 5 6 19 34 37 36 37 55 On Entrance 24 | . 6 7 26 37 37 38 43 Avg Prop Armor Cover (%) 6 | . . 10 . 7 . . 4 Naked Turns . | . . . . . . . . Heaviest Build 77 | 13 21 56 60 70 70 77 59 Greatest Support 68 | 40 40 40 51 60 60 68 43 Greatest Overweight (x) 3 | . . 3 1 2 1 1 3 Average Overweight (x) . | . . . 1 1 1 . . Largest Inventory Capacity 20 | 8 10 20 20 20 20 20 20 Average Capacity 17 | 6 8 16 20 20 20 20 10 Most Carried 20 | 6 10 20 20 20 20 20 20 Average Carried 17 | 3 8 14 19 19 19 19 10 Final Capacity 20 | 8 10 20 20 20 20 20 10 Final Carried 20 | 6 9 20 20 20 20 20 9 Class Distribution -------------------- 55% | Hacker-Mutant 16% | Scavenger-Mutant 13% | Mutant 10% | Commander-Mutant 3% | Hacker-Scout Dominant Class ---------------- Mutant | -10/Materials Scavenger-Mutant | -9/Materials Hacker-Mutant | -8/Materials Hacker-Mutant | -8/Storage Hacker-Mutant | -8/Recycling Hacker-Mutant | -8/Scraptown Hacker-Scout | -6/Factory Resources | -11 -10 -9 -8 -8 -8 -8 -6 ----------- Run | Yrd Mat Mat Mat Sto Rec Scr Fac Matter Collected 2599 | 212 341 1009 141 365 126 97 308 Remotely . | . . . . . . . . Salvage Created 5308 | . 514 2031 322 1922 247 . 272 Parts 303 | . 44 130 15 99 8 . 7 Haulers Intercepted 15 | . 2 6 1 6 . . . Recyclers Shooed 4 | . . 2 . 2 . . . Parts Field Recycled . | . . . . . . . . Retrieved Matter . | . . . . . . . . Parts Self-Destructed . | . . . . . . . . Prevented . | . . . . . . . . Parts Restored . | . . . . . . . . Kills | -11 -10 -9 -8 -8 -8 -8 -6 ------- Run | Yrd Mat Mat Mat Sto Rec Scr Fac Combat Hostiles Destroyed 96 | . 14 35 5 35 1 . 6 Melee 6 | . . . . . . . 6 Guns 82 | . 14 35 5 27 1 . . AOE 7 | . . . . 7 . . . Classes Destroyed 11 | . 4 5 . 1 . . 1 Worker 6 | . . 5 . 1 . . . Hauler 15 | . 2 6 1 6 . . . Recycler 6 | . . 4 . . 2 . . Operator 2 | . . 2 . . . . . Watcher 11 | . 1 5 1 1 . . 3 Swarmer 29 | . 6 11 . 8 . . 4 Grunt 40 | . 8 16 2 13 1 . . Brawler 1 | . . . . 1 . . . Duelist 1 | . . 1 . . . . . Sentry 26 | . . 7 3 13 2 . 1 Programmer 1 | . . . . . . . 1 Best Kill Streak 7 | . 4 6 2 7 1 . 4 Combat Bots Only 7 | . 4 4 2 7 1 . 4 Max Kills in Single Turn 4 | . 1 3 1 4 1 . 1 Gunslinging 1 | . . . . 1 . . . Exploded 4 | . . . . 4 . . . Melee 1 | . . . . . . . 1 Uniques/NPCs Destroyed . | . . . . . . . . Combat | -11 -10 -9 -8 -8 -8 -8 -6 -------- Run | Yrd Mat Mat Mat Sto Rec Scr Fac Hostile Shots Fired 581 | . 51 145 26 134 11 . 214 Missed 161 | . 16 32 8 36 1 . 68 Hits 420 | . 35 113 18 98 10 . 146 Melee 10 | . . 7 . 3 . . . Projectile 410 | . 35 106 18 95 10 . 146 AOE 6 | . . . . . 6 . . Critical Strikes 20 | . 2 5 1 6 1 . 5 Damage Taken 6786 | . 449 1559 277 1555 357 . 2589 Core 1453 | . 89 180 47 199 74 . 864 Absorbed by Shields 46 | . . . . . 18 . 28 Regen/Repaired (Parts) 1210 | . 120 58 138 195 . 458 241 Core Remaining (%) 65 | 100 64 55 . . . 41 . Volleys Fired 324 | . 52 141 26 97 8 . . Largest 2 | . 2 2 2 2 2 . . Hottest 138 | . 60 79 138 138 105 . . Shots Fired 647 | . 104 281 52 193 17 . . Gun 645 | . 104 281 52 191 17 . . Cannon . | . . . . . . . . Launcher 2 | . . . . 2 . . . Special . | . . . . . . . . Kinetic 356 | . 97 233 26 . . . . Thermal 237 | . 7 48 26 148 8 . . Explosive 2 | . . . . 2 . . . Electromagnetic 52 | . . . . 43 9 . . Robot Hit Streak 19 | . 13 16 10 19 7 . . Robot Miss Streak 6 | . 4 3 6 3 2 . . Penetration Max . | . . . . . . . . Secondary Targets 10 | . 2 2 . 5 1 . . Max Gunslinging Chain 1 | . 1 1 . 1 1 . . Shots Hit Robots 481 | . 66 186 35 148 13 . 33 Core Hits 217 | . 29 84 15 72 9 . 8 Critical Kills . | . . . . . . . . Critical Parts Destroyed 3 | . . . . . . . 3 Critical Strikes 9 | . . . . 3 1 . 5 Burn 4 | . . . . 3 1 . . Smash 4 | . . . . . . . 4 Sever 1 | . . . . . . . 1 Melee Attacks 53 | . . . . . . . 53 Impact 45 | . . . . . . . 45 Slashing 8 | . . . . . . . 8 Piercing . | . . . . . . . . Sneak Attacks . | . . . . . . . . Combat Hostiles . | . . . . . . . . Follow-up Attacks 2 | . . . . . . . 2 Damage Inflicted 9373 | . 698 2935 593 3264 368 . 1515 Guns 6916 | . 698 2579 579 2772 288 . . Cannons . | . . . . . . . . Explosions 866 | . . 344 . 442 80 . . Melee 1515 | . . . . . . . 1515 Ramming 76 | . . 12 14 50 . . . Kinetic 3104 | . 630 2185 289 . . . . Thermal 3514 | . 68 738 290 2214 204 . . Explosive 289 | . . . . 289 . . . Electromagnetic 875 | . . . . 711 164 . . Impact 1283 | . . . . . . . 1283 Slashing 232 | . . . . . . . 232 Piercing . | . . . . . . . . Highest Corruption 5 | . . . . 5 5 5 4 Average Corruption 4 | . . . . 5 5 4 2 Corruption Purged 5 | . . . . . . 5 . Corruption Blocked . | . . . . . . . . Effects 118 | . . . . 41 44 26 7 Message Errors 35 | . . . . 13 12 6 4 Matter Fused 25 | . . . . 12 9 3 1 Heat Flow Errors 18 | . . . . 7 6 5 . Energy Discharges 10 | . . . . 2 3 4 1 Parts Fused 1 | . . . . . . 1 . Data Loss (minor) 14 | . . . . 2 9 3 . Data Loss (major) 10 | . . . . 3 3 3 1 Misfires 3 | . . . . 2 1 . . Alerts 2 | . . . . . 1 1 . Overload Shots . | . . . . . . . . Overflow Damage 360 | . . 30 . 3 . . 327 Projectiles . | . . . . . . . . Explosions 30 | . . 30 . . . . . Melee 330 | . . . . 3 . . 327 Knockbacks 1 | . . . . 1 . . . Impact 1 | . . . . 1 . . . Kinetic . | . . . . . . . . Secondary . | . . . . . . . . Self-Inflicted Damage 177 | . . 97 . 80 . . . Shots 3 | . . 1 . 2 . . . Rammed 2 | . . . . 2 . . . Targets Rammed 11 | . . 2 3 6 . . . Kicked 8 | . . 1 3 4 . . . Crushed 1 | . . 1 . . . . . Highest Temperature 540 | . 121 70 27 188 231 251 540 Average Temperature 52 | . 20 19 15 37 66 99 262 Received Heat Transfer 2713 | . 183 459 162 585 90 . 1234 Effects 1 | . . . . . . . 1 Short Circuit 1 | . . . . . . . 1 Siege Activations . | . . . . . . . . Martial Activations . | . . . . . . . . Shielding Activations . | . . . . . . . . Robots Disrupted . | . . . . . . . . Combat Hostiles . | . . . . . . . . Robots Corrupted 1 | . . . . . . . 1 Combat Hostiles . | . . . . . . . . Parts Fried 5 | . . . . 2 . . 3 Impact Corruptions 13 | . . . . 1 . . 12 Robots Melted 1 | . . . . 1 . . . Combat Hostiles 1 | . . . . 1 . . . Parts Melted 14 | . . 2 3 9 . . . Heat Transferred 6468 | . 150 1133 555 4244 386 . . Parts Sabotaged . | . . . . . . . . Parts Stolen . | . . . . . . . . Parts Stripped . | . . . . . . . . Power Chain Reactions 3 | . . . . 2 1 . . Alert | -11 -10 -9 -8 -8 -8 -8 -6 ------- Run | Yrd Mat Mat Mat Sto Rec Scr Fac Maximum Alert Level 2 | . 1 2 . 1 . . . Low Security (%) 87 | 100 62 78 100 88 100 . 100 Level 1 10 | . 37 15 . 11 . . . Level 2 1 | . . 6 . . . . . Level 3 . | . . . . . . . . Level 4 . | . . . . . . . . Level 5 . | . . . . . . . . High Security . | . . . . . . . . Max Security . | . . . . . . . . Peak Influence 423 | . 295 423 67 273 125 . 75 Initial 67 | . . 56 67 . 57 . . Average 98 | . 162 139 13 147 18 . 19 Influence Increases 3495 | . 465 1144 173 1201 297 . 215 Destroy 0b10 Robot/C 2100 | . 280 700 100 720 180 . 120 Destroy 0b10 Robot/NC 220 | . 15 110 10 50 20 . 15 Destroy Leader 534 | . 56 192 44 206 . . 36 Allied During Kill 114 | . . . . 34 80 . . Trap Triggered on 0b10 10 | . . 10 . . . . . Successful Hack 98 | . 9 15 18 30 16 . 10 Disable Machine 105 | . . 45 . 45 . . 15 Destroy Structure 59 | . . 27 1 26 1 . 4 Partial Spotted 15 | . . . . 15 . . . Lose Combat Pursuer 240 | . 105 45 . 75 . . 15 Influence Decreases 3495 | . 330 1119 333 1053 445 . 215 Entered New Map 263 | . . 79 93 . 91 . . Time Decay 2421 | . 330 700 240 693 253 . 205 Lost Part 131 | . . 40 . 60 21 . 10 Lost Ally 80 | . . . . . 80 . . Purge Threat 600 | . . 300 . 300 . . . Squads Dispatched 18 | . 3 5 1 5 . . 4 Investigation 5 | . . 3 1 . . . 1 Extermination 2 | . . . . . . . 2 Reinforcement 8 | . 3 2 . 2 . . 1 Assault . | . . . . . . . . Garrison 3 | . . . . 3 . . . Intercept . | . . . . . . . . Searches Triggered . | . . . . . . . . Construction Impeded . | . . . . . . . . Haulers Reinforced . | . . . . . . . . Active Scanning Responses . | . . . . . . . . Cargo Convoy Interrupts . | . . . . . . . . Stealth | -11 -10 -9 -8 -8 -8 -8 -6 --------- Run | Yrd Mat Mat Mat Sto Rec Scr Fac Distress Signals 14 | . 5 2 . 6 . . 1 Communications Jammed . | . . . . . . . . Distress Signals . | . . . . . . . . Times Spotted 162 | . 27 53 8 48 9 . 17 Peak Tracking Total 9 | . 9 4 2 7 7 . 5 Tactical Retreats 13 | . 5 3 . 4 . . 1 Traps | -11 -10 -9 -8 -8 -8 -8 -6 ------- Run | Yrd Mat Mat Mat Sto Rec Scr Fac Traps Triggered 10 | . 3 4 . 3 . . . Indirectly . | . . . . . . . . Trap Hack Attempts . | . . . . . . . . Triggered . | . . . . . . . . Disarmed . | . . . . . . . . Reprogrammed 6 | . . 6 . . . . . Reused 1 | . . 1 . . . . . Traps Extracted . | . . . . . . . . Installed . | . . . . . . . . Triggered 1 | . . 1 . . . . . Machines | -11 -10 -9 -8 -8 -8 -8 -6 ---------- Run | Yrd Mat Mat Mat Sto Rec Scr Fac Machines Disabled 7 | . . 3 . 3 . . 1 Max in Single Turn 3 | . . 3 . 1 . . 1 Garrison Access 3 | . . . 1 1 . . 1 Machines Repaired . | . . . . . . . . Machines Dismantled . | . . . . . . . . Machines Sabotaged . | . . . . . . . . Overloaded Fab Kills . | . . . . . . . . Hacking | -11 -10 -9 -8 -8 -8 -8 -6 --------- Run | Yrd Mat Mat Mat Sto Rec Scr Fac Machines Accessed 57 | . 4 11 6 13 10 5 8 Terminals 32 | . 3 8 4 9 5 . 3 Fabricators . | . . . . . . . . Repair Stations 7 | . 1 1 1 2 . . 2 Recycling Units 8 | . . 1 . 1 5 . 1 Scanalyzers 2 | . . 1 . . . . 1 Garrison Access 3 | . . . 1 1 . . 1 Total Hacks 172 | . 15 36 14 39 27 18 23 Successful 114 | . 7 21 10 26 20 18 12 Failed 57 | . 8 14 4 13 7 . 11 Catastrophic 9 | . 1 2 . 2 1 . 3 Database Lockouts 1 | . . 1 . . . . . Manual 60 | . 6 13 7 12 14 . 8 Terminals 101 | . 11 24 11 30 15 . 10 Fabricators . | . . . . . . . . Repair Stations 20 | . 4 4 2 4 . . 6 Recycling Units 19 | . . 1 . 3 12 . 3 Scanalyzers 9 | . . 7 . . . . 2 Garrison Access 5 | . . . 1 2 . . 2 Terminal Hacks 62 | . 2 8 5 19 9 18 1 Record 14 | . . . 1 . . 13 . Part Schematic 3 | . . . . 1 2 . . Robot Schematic 1 | . . . . 1 . . . Robot Analysis 8 | . . . 1 . 3 4 . Prototype ID Bank 2 | . 1 . . 1 . . . Open Door 3 | . . . . 3 . . . Branch Access Points 2 | . . 1 1 . . . . Emergency Access Points 1 | . . . 1 . . . . Terminal Index 1 | . . . . . . . 1 Alert Level 8 | . . 2 . 4 2 . . Unreport Threat 4 | . . 2 . 2 . . . Locate Traps 3 | . . . . 3 . . . Reprogram Traps 1 | . . 1 . . . . . Hauler Manifests 5 | . . . 1 3 1 . . Registered Components 2 | . 1 1 . . . . . Registered Prototypes 2 | . . . . 1 1 . . Zone Layout 1 | . . 1 . . . . . Proto ID Catalog 1 | . . . . . . 1 . Fabricator Hacks . | . . . . . . . . Repair Station Hacks 19 | . 4 3 2 4 . . 6 Scan Component 10 | . 2 2 1 2 . . 3 Repair 9 | . 2 1 1 2 . . 3 Recycling Unit Hacks 8 | . . 1 . 1 5 . 1 Report Inventory 1 | . . . . . 1 . . Retrieve Components 7 | . . 1 . 1 4 . 1 Scanalyzer 6 | . . 6 . . . . . Insert Component 2 | . . 2 . . . . . Analyze 2 | . . 2 . . . . . Retrieve Study 2 | . . 2 . . . . . Garrison Access Hacks 3 | . . . 1 1 . . 1 Seal Access 3 | . . . 1 1 . . 1 Unauthorized Hacks 16 | . 1 3 2 1 6 . 3 Terminals 11 | . 1 3 2 1 2 . 2 Assimilate 1 | . . 1 . . . . . Botnet 9 | . 1 2 1 1 2 . 2 Disrupt 1 | . . . 1 . . . . Fabricators . | . . . . . . . . Repair Stations . | . . . . . . . . Recycling Units 5 | . . . . . 4 . 1 Reject 5 | . . . . . 4 . 1 Scanalyzers . | . . . . . . . . Garrison Access . | . . . . . . . . Data Cores Recovered 1 | . . 1 . . . . . Used . | . . . . . . . . Hacking Detections 39 | . 3 10 5 10 6 . 5 Full Trace Events 4 | . . 2 1 . . . 1 Feedback Events . | . . . . . . . . Feedback Blocked . | . . . . . . . . Robot Schematics Acquired 1 | . . . . 1 . . . Robots Built . | . . . . . . . . Authchips . | . . . . . . . . Time . | . . . . . . . . Total Robot Build Rating . | . . . . . . . . Part Schematics Acquired 5 | . . 2 . 1 2 . . Parts Built . | . . . . . . . . Authchips . | . . . . . . . . Time . | . . . . . . . . Total Part Build Rating . | . . . . . . . . Part Studies Acquired 2 | . . 2 . . . . . Parts Repaired 9 | . 2 1 1 2 . . 3 Time 343 | . 52 36 19 82 . . 154 Parts Recycled . | . . . . . . . . Recycled Matter . | . . . . . . . . Retrieved Matter . | . . . . . . . . Retrieved Components 39 | . . 9 . 10 19 . 1 Parts Scanalyzed 2 | . . 2 . . . . . Part Schematics Acquired 2 | . . 2 . . . . . Parts Damaged . | . . . . . . . . Bothacking | -11 -10 -9 -8 -8 -8 -8 -6 ------------ Run | Yrd Mat Mat Mat Sto Rec Scr Fac Used RIF Installer . | . . . . . . . . Robots Hacked . | . . . . . . . . Non-combat . | . . . . . . . . Combat . | . . . . . . . . Robot Hacks Applied . | . . . . . . . . Relay Couplers Released . | . . . . . . . . Fabnet Peak Effective % . | . . . . . . . . Robots Rewired 7 | . . . . . 7 . . Allies Hacked . | . . . . . . . . Hacks Repelled . | . . . . . . . . Allies | -11 -10 -9 -8 -8 -8 -8 -6 -------- Run | Yrd Mat Mat Mat Sto Rec Scr Fac Total Allies 17 | . . . . 10 7 . . Largest Group 10 | . . . . 10 10 4 4 Highest-Rated Group 194 | . . . . 173 194 93 93 Highest-Rated Ally 29 | . . . . 29 29 29 29 Initial UFD Resources 22 | . . . . . . . 22 Total Orders . | . . . . . . . . Ally Attacks 58 | . . . . 10 46 . 2 Total Damage 825 | . . . . 143 637 . 45 Kills 14 | . . . . 3 11 . . Allies Corrupted . | . . . . . . . . Allies Melted . | . . . . . . . . Intel | -11 -10 -9 -8 -8 -8 -8 -6 ------- Run | Yrd Mat Mat Mat Sto Rec Scr Fac Active Infowar (turns) 2959 | . . . . 1885 147 . 927 Sensors 2484 | . . . . 1885 147 . 452 IFF 27 | . . . . . . . 27 Traps 927 | . . . . . . . 927 Robot Analysis Total 8 | . . . 1 . 3 4 . Derelict Logs Recovered . | . . . . . . . . Drone Launches . | . . . . . . . . Drone Recoveries . | . . . . . . . . Exploration | -11 -10 -9 -8 -8 -8 -8 -6 ------------- Run | Yrd Mat Mat Mat Sto Rec Scr Fac Turns Passed 14543 | 112 899 2989 1178 3044 1766 3545 1010 Spaces Moved 6691 | 64 400 1205 495 1138 690 1687 1012 Core 22 | 4 . . . . . . 18 Treads 4102 | 60 400 943 . 322 690 1687 . Legs 1573 | . . 262 495 816 . . . Wheels . | . . . . . . . . Hover 994 | . . . . . . . 994 Flight . | . . . . . . . . Fastest Speed 34 | 50 160 160 200 196 240 163 34 Average Speed 179 | 153 160 193 200 215 242 202 42 Slowest Speed 340 | 160 160 340 200 265 243 243 200 Overloaded Moves . | . . . . . . . . Propulsion Burnouts . | . . . . . . . . Robots Hopped . | . . . . . . . . Potential Cave-ins . | . . . . . . . . Cave-ins Triggered . | . . . . . . . . Exploration Rate (%) 61 | 4 83 76 22 96 99 92 20 Regions Visited 7 Branch Regions 3 Pre-discovered Areas 1 | . . . . 1 . . . Known Exits Taken 1 | . . . 1 . . . . Unknown Exits Taken 6 | 1 1 1 . 1 1 1 . Scrap Searched 4 | . . . . . . 4 . Spaces Dug 4 | . . . . . . . 4 Terrain Destroyed 49 | . . 19 . 25 1 . 4 Melee 4 | . . . . . . . 4 Projectile . | . . . . . . . . AOE 45 | . . 19 . 25 1 . . Terrain Rammed . | . . . . . . . . Walls Destroyed . | . . . . . . . . Machines Disabled . | . . . . . . . . Actions | -11 -10 -9 -8 -8 -8 -8 -6 --------- Run | Yrd Mat Mat Mat Sto Rec Scr Fac Total 8482 | 75 566 1589 630 1532 770 1808 1512 Wait 1069 | . 81 163 89 228 20 101 387 Move 6684 | 63 399 1204 494 1137 689 1686 1012 Hop . | . . . . . . . . Pick Up 67 | 6 7 21 5 13 4 1 10 Fast Attach 51 | 6 8 15 2 6 1 7 6 Attach 20 | . 1 4 1 3 2 . 9 Detach 5 | . 1 3 . . . 1 . Swap 68 | . 7 14 4 17 3 5 18 Drop 84 | . 10 22 6 15 5 7 19 Fire 324 | . 52 141 26 97 8 . . Melee 51 | . . . . . . . 51 Ram . | . . . . . . . . Kick 8 | . . 1 3 4 . . . Crush 3 | . . 1 . 2 . . . Escape Stasis 10 | . . . . 10 . . . Rewire 38 | . . . . . 38 . . Trap . | . . . . . . . . Miscellaneous . | . . . . . . . . Route ------- -11/Scrapyard -10/Materials (discovered 5 exits: *Mat x2 / [*Min x2] / [*Sub]) -9/Materials (discovered 4 exits: *Mat x3 / *Min) -8/Materials -8/Storage (discovered 2 exits: [*Fac] / *Rec) -8/Recycling (discovered 2 exits: *Fac / *Scr) -8/Scraptown (discovered 2 exits: *Fac x2) -6/Factory History --------- Turn | Location | Event 29 | -11/Scrapyard | Discovered new exit (range 15) 113 | -11/Scrapyard | Entered Materials 334 | -10/Materials | Build established: Mutant 439 | -10/Materials | Discovered new exit (range 16) 613 | -10/Materials | Discovered new exit (range 16) 715 | -10/Materials | Discovered new exit (range 13) 820 | -10/Materials | Repaired Lgt. Treads 847 | -10/Materials | Repaired Lgt. Treads 893 | -10/Materials | Discovered new exit (range 13) 990 | -10/Materials | Discovered new exit (range 9) 1012 | -10/Materials | Entered another Materials area 1012 | -9/Materials | Evolved 2 slots: Utility x2 1494 | -9/Materials | Build established: Scavenger-Mutant 1694 | -9/Materials | Repaired Broken Lgt. Treads 1797 | -9/Materials | Discovered new exit (range 15) 1941 | -9/Materials | Identified exit to Mines 2480 | -9/Materials | Discovered new exit (range 10) 3292 | -9/Materials | Central database locked down 3673 | -9/Materials | Build established: Hacker-Mutant 3788 | -9/Materials | Discovered new exit (range 14) 4001 | -9/Materials | Entered another Materials area 4001 | -8/Materials | Evolved 2 slots: Propulsion x1, Utility x1 4067 | -8/Materials | Identified exit to Storage 4551 | -8/Materials | Repaired Titanium Leg 5179 | -8/Materials | Entered Storage 5213 | -8/Storage | Garrison activated, responded to threat 5249 | -8/Storage | Destroyed 7 combat bots 5510 | -8/Storage | Repaired Hvy. Laser 5761 | -8/Storage | Repaired Titanium Leg 6012 | -8/Storage | Discovered new exit (range 16) 6016 | -8/Storage | Learned location of Armory (-4) 6633 | -8/Storage | Build established: Mutant 6636 | -8/Storage | Used back door to open Recycling access 6636 | -8/Storage | Discovered new exit (range 4) 7324 | -8/Storage | Assisted by bots powering up and referring to "LRC-V3" 7629 | -8/Storage | Build established: Commander-Mutant 8223 | -8/Storage | Entered Recycling 8223 | -8/Recycling | Accompanied by 10 allies 8372 | -8/Recycling | Core integrity fell below 50% 8400 | -8/Recycling | Lost 5 allies 8401 | -8/Recycling | Lost 3 parts (3u) 8849 | -8/Recycling | Lost 7 allies 9013 | -8/Recycling | Discovered new exit (range 15) 9106 | -8/Recycling | Build established: Hacker-Mutant 9501 | -8/Recycling | Watched by a mysterious "MATRIX" hacker 9919 | -8/Recycling | Scanned before Scraplab entrance 9953 | -8/Recycling | Entered Scraplab 9973 | -8/Recycling | Discovered new exit (range 3) 9989 | -8/Recycling | Entered Scraptown 9989 | -8/Scraptown | Accompanied by 4 allies 10598 | -8/Scraptown | Discovered new exit (range 5) 10797 | -8/Scraptown | Visited Cave Peace 10916 | -8/Scraptown | Visited Supply Room 11130 | -8/Scraptown | Visited CR-KLE's Repair Center 11201 | -8/Scraptown | Visited Artisan Demo Area 11312 | -8/Scraptown | Visited Awakened 11371 | -8/Scraptown | Visited Fellowship of the Rings 11941 | -8/Scraptown | Visited UFD Registry 11941 | -8/Scraptown | Registered with UFD as "Microchip" 11995 | -8/Scraptown | Visited Observation Area 12106 | -8/Scraptown | Visited Botcube Research 12138 | -8/Scraptown | Visited Science Guys 12197 | -8/Scraptown | Visited Research Penetration Think Tank 12239 | -8/Scraptown | Visited Chapter 10 12269 | -8/Scraptown | Visited Analyses Database 12309 | -8/Scraptown | Visited Infowarlord's Domain 12361 | -8/Scraptown | Visited Abandonware Association 12373 | -8/Scraptown | Learned abandonware demo "OVRCLOCK.EXE" 12401 | -8/Scraptown | Learned abandonware demo "MELTYB.EXE" 12401 | -8/Scraptown | Learned abandonware demo "REBOOT5.EXE" 12621 | -8/Scraptown | Visited LU-1G1's Boring Crew 12689 | -8/Scraptown | Visited Scrap Suit Storage 13111 | -8/Scraptown | CR-KLE repaired 7 parts 13364 | -8/Scraptown | Met Optimus 13364 | -8/Scraptown | Accepted into 0bPrime 13522 | -8/Scraptown | Discovered new exit (range 5) 13534 | -8/Scraptown | Entered Factory 13534 | -6/Factory | Accompanied by 4 allies 13534 | -6/Factory | Evolved 4 slots: Propulsion x3, Utility x1 13717 | -6/Factory | Repaired Gyrokinetic Inverter 14333 | -6/Factory | Repaired Hrd. Medium Armor Plating 14390 | -6/Factory | Build established: Hacker-Scout 14394 | -6/Factory | Repaired Aerolev Unit 14440 | -6/Factory | Spotted B-75 Beast 14503 | -6/Factory | Core integrity fell below 50% 14537 | -6/Factory | Core integrity fell below 20% 14544 | -6/Factory | Destroyed by B-75 Beast with Heavy Machine Gun Last Messages --------------- 14506_ Knocked back. 14508_ U-05 Engineer builds a Wall. 14511_ B-75 Beast IFF system glitched. 14511_ U-05 Engineer destroyed. 14521_ Acquired Faulty Cold Fusion Reactor. 14522_ Adv. Heat Sink destroyed. 14524_ K-01 Serf collects debris. 14527_ R-10 Processor collects Welding Torch. 14529_ P-60 Hacker resets K-01 Serf, system corruption cleaned. 14530_ Dropped Faulty Cold Fusion Reactor. 14530_ R-10 Processor collects Gyrokinetic Inverter. 14533_ K-01 Serf collects debris. 14533_ R-10 Processor collects Wheel. 14538_ ALERT: Suspicious intruders detected, dispatching Specialist reinforcements to area. 14538_ Penetrated by Slug. 14542_ Knocked back. 14543_ Hacking Suite destroyed. Map ----- +----------------------------------------------------+ | ????????#"""" #??# """ #?????# # | | ????????#"""" #### """ #?????# # | | #########"""" + + """ #?????# # | | # #### #?????# # | | ###+#############+########## # | | ####### | | #?????? | | ! #?????? | | ! % #?????? | | #?????? | | ###+######################## #?????? | | # #?????????????????# #?????? | | ######### #?????????????????# #?????? | | ????????# #?????????????????# ##????? | | ????????# ########?###??????# T#????? | | ????????# [ ## """""" #??????# #????? | | ????????# ! ## """""" #??????# ##????? | | ????????# ## """""" ]#??????# #?????? | | ???????# "# """""" #??????# #?????? | | ! ??????# ## #??????# ####### | | ?????#########"# = #??????# ## | | ??####??????### ] #?????## ##""" | | "?# ##???????# #?????# #""" | | #= ";;;;;#########+########## #"S | | "" #% kR **^ * % #""" | | "" %#% Y u @ # "" | | """ +%%"""" ^% % H + | | """ ?# ""F" % # [ | | "" ??# "" ^ p # | | ????# ^ t ######## # """ | | +?????# """"""""" #??????# # """ | | ?????? !* k#??????### ### """ | | ????? """"""""" !* ! #????????# #?# | | ???? k #????????# #?###### | | ???? ^^ % #????????# #??????? | | ???? ##### #????????# #??????? | | ???? ##???# #????????# #??????? | | ???# #????# +????????# ######## | | ???# ?????# #????????# | | ???# ######?????? #????????# | | ???# ????????????????? ?????????# | | ???? ???????????????????????????????# | | ????????????????????????????????????# | | ????????????????????????????????????############## | | ?????????????????????????????????????????????????? | | ?????????????????????????????????????????????????? | | ?????????????????????????????????????????????????? | | ?????????????????????????????????????????????????? | | ?????????????????????????????????????????????????? | | ?????????????????????????????????????????????????? | +----------------------------------------------------+ Best States ------------- Heat Dissipation 58 Energy Generation 18 Energy Capacity 280 Matter Stores 300 Matter Capacity 450 Sight Range 16 Robot Scan Range 15 Terrain Scan Density 10 Armor Coverage 225 Propulsion Shielding 66 Evasion (%) 64 Recoil Reduction 3 Offensive Hacking 21 Defensive Hacking 10 Authchip Count 1 Item Schematics ----------------- VTOL Module | -9/Materials | Scanalyzed Hacking Suite | -9/Materials | Scanalyzed Stasis Canceller | -8/Storage | Hacked Airjet | -8/Recycling | Hacked Lgt. Deuterium Engine | -8/Recycling | Hacked Robot Schematics ------------------ G-47 Trooper | -8/Storage | Hacked Fabricated ------------ Nothing Repaired ---------- Lgt. Treads | 48% | -10/Materials Lgt. Treads | 65% | -10/Materials Lgt. Treads | 58% | -9/Materials | Broken Titanium Leg | 4% | -8/Materials Hvy. Laser | 16% | -8/Storage Titanium Leg | 14% | -8/Storage Gyrokinetic Inverter | 40% | -6/Factory Hrd. Medium Armor Plating | 33% | -6/Factory Aerolev Unit | 36% | -6/Factory Studied --------- VTOL Module | -9/Materials | Hacked Flight Unit | -9/Materials | Hacked Alien Tech Used ----------------- None Achievements -------------- None Challenges ------------ None Game ------ Seed LinearBraceShield Manual? 0 Play Time 01:44:59 Cumulative 105.8 hours Start 2026.08.01 @ 02:52:04 End 2026.08.01 @ 04:44:01 Sessions 1 Manual Loads 0 Difficulty Rogue Special Mode None Game No. 62 Rogue 62 Adventurer 0 Explorer 0 Win Type - Total 1 Types 1/0/0/0/0/0/0/0/0/0 Lore% 61 Gallery% 51 Achievement% 48 Wizard Run 0 Options --------- Layout 1 ASCII 0 Keyboard 1 Movement Arrows Keybinds 0 Fullscreen 1 Font 24/Smallcaps Map View 50x35 Zoom Use 0% Tactical HUD 1 Map Filters NONE Filters NONE Steam 1 RUN: a88f339b-7c90-4bc0-95b9-8e5608428ae9